bitfinex-derivatives/quotes_SOLF0:USTF0_20260105
["timestamp","ask_amount","ask_price","bid_price","bid_amount"]
[1767639638823,6.556,137.3,137.22,6.8864567]
[1767639639027,6.556,137.3,137.22,0.3268567]
[1767639639428,6.5565,137.29,137.22,0.3268567]
[1767639639929,6.5565,137.29,137.19,109.02091716]
[1767639640131,6.5565,137.29,137.2,0.3268567]
[1767639640532,6.5565,137.29,137.22,6.5597]
[1767639641032,6.5569,137.28,137.2,0.3268567]
[1767639641437,2.83144253,137.27,137.18,0.3268567]
[1767639641620,6.5573,137.28,137.19,0.3268567]
[1767639641824,2.83144253,137.27,137.18,6.5616]
[1767639642125,101.9924,137.29,137.18,0.3268567]
[1767639642126,2.83144253,137.29,137.18,0.3268567]
[1767639643128,6.5579,137.26,137.18,0.3268567]
[1767639643432,2.83144253,137.27,137.18,0.3268567]
[1767639643624,6.5593,137.23,137.16,0.3268567]
[1767639644233,2.83144253,137.23,137.16,0.3268567]
[1767639644532,86.08,137.24,137.16,0.3268567]
[1767639644734,86.08,137.24,137.14,0.3268567]
[1767639645630,102.0144,137.26,137.15,0.3268567]
[1767639645832,86.1,137.25,137.15,0.3268567]
[1767639646430,102.0445,137.22,137.12,6.63576046]
[1767639646733,6.5612,137.2,137.11,0.3268567]
[1767639647340,86.1,137.2,137.11,0.3268567]
[1767639648027,6.5618,137.18,137.11,0.3268567]
[1767639648935,86.1,137.2,137.11,0.3268567]
[1767639649234,86.1,137.21,137.11,0.3268567]
[1767639649827,102.0408,137.23,137.11,0.3268567]
[1767639650030,86.12,137.22,137.11,0.3268567]
[1767639650235,86.12,137.22,137.12,0.3268567]
[1767639650534,102.0205,137.25,137.14,0.3268567]
[1767639650734,86.12,137.24,137.14,0.3268567]
[1767639651038,6.5594,137.23,137.14,6.8903567]
[1767639651529,6.5594,137.23,137.14,0.3268567]
[1767639651838,6.5598,137.22,137.14,0.3268567]
[1767639652540,92.6792,137.24,137.15,6.563]
[1767639652835,86.12,137.24,137.15,6.563]
[1767639653533,6.5594,137.23,137.15,6.563]
[1767639654740,6.5599,137.22,137.14,0.3268567]
[1767639655241,6.5599,137.22,137.13,6.67401144]
[1767639655242,92.6791,137.24,137.15,6.90622758]
[1767639656436,92.6791,137.24,137.16,6.90592758]
[1767639656735,6.5591,137.24,137.16,6.90592758]
[1767639657033,92.6781,137.26,137.17,0.34342758]
[1767639657933,6.5571,137.28,137.18,0.34342758]
[1767639658133,92.6771,137.28,137.18,0.34342758]
[1767639658340,6.5574,137.27,137.18,0.34342758]
[1767639658940,86.12,137.28,137.18,0.34342758]
[1767639659239,101.9455,137.35,137.21,0.34342758]
[1767639659541,101.9455,137.35,137.22,0.34342758]
[1767639659542,86.12,137.33,137.22,0.34342758]
[1767639659931,92.6749,137.33,137.23,6.559]
[1767639660439,86.12,137.33,137.23,6.559]
[1767639660736,86.12,137.33,137.22,0.34342758]
[1767639661342,6.5553,137.32,137.22,6.90282758]
[1767639661542,6.5553,137.32,137.22,0.34342758]
[1767639662240,86.12,137.34,137.25,0.33434088]
[1767639662543,86.12,137.35,137.25,0.33434088]
[1767639663147,86.12,137.35,137.26,0.33434088]
[1767639663745,6.5522,137.38,137.3,6.5558]
[1767639663944,92.6722,137.38,137.3,6.5558]
[1767639664648,6.5528,137.37,137.28,6.5565]
[1767639664949,6.5528,137.37,137.28,6.89084088]
[1767639665143,86.12,137.38,137.29,0.33434088]
[1767639665847,86.12,137.38,137.3,6.5558]
[1767639666349,86.12,137.38,137.29,0.33434088]
[1767639667647,92.6724,137.38,137.29,0.33434088]
[1767639668445,6.5528,137.37,137.28,6.5566]
[1767639668643,188.0456,137.38,137.26,6.89194088]
[1767639668844,188.0456,137.38,137.27,0.33434088]
[1767639669042,6.5532,137.36,137.27,6.89154088]
[1767639671143,92.6723,137.38,137.28,6.89104088]
[1767639671347,22.06548288,137.43,137.29,0.33434088]
[1767639671556,86.08,137.42,137.3,0.33434088]
[1767639672554,6.5513,137.4,137.32,6.5548]
[1767639674247,101.902,137.41,137.3,6.88984088]
[1767639674654,187.9773,137.42,137.3,0.33434088]
[1767639675050,6.5517,137.39,137.31,6.5553]
[1767639676759,86.06,137.44,137.32,0.33434088]
[1767639678350,6.5508,137.41,137.33,6.5543]
[1767639679963,6.5508,137.41,137.33,6.88864088]
[1767639680562,6.5514,137.4,137.33,0.33434088]
[1767639681758,6.5505,137.42,137.33,0.33434088]
[1767639682358,187.9414,137.44,137.33,0.33434088]
[1767639682667,101.8852,137.43,137.32,6.5547]
[1767639682862,101.8931,137.42,137.3,0.33434088]
[1767639683058,6.5517,137.39,137.31,6.5554]
[1767639683253,101.8931,137.42,137.31,0.33434088]
[1767639683467,101.8852,137.43,137.31,0.33434088]
[1767639683468,101.909,137.4,137.31,0.33434088]
[1767639683666,86.04,137.39,137.31,0.33434088]
[1767639684157,101.9238,137.38,137.26,86.37434088]
[1767639684365,101.9238,137.38,137.26,0.33434088]
[1767639684670,4.85466259,137.37,137.26,0.33434088]
[1767639685363,6.554,137.34,137.26,0.33434088]
[1767639686563,6.554,137.34,137.26,6.89214088]
[1767639687260,6.5545,137.33,137.26,6.89214088]
[1767639687460,6.5545,137.33,137.26,0.33434088]
[1767639688260,6.555,137.32,137.26,0.33434088]
[1767639689461,6.555,137.32,137.23,0.33434088]
[1767639690157,6.555,137.32,137.25,6.89234088]
[1767639690968,6.5555,137.31,137.23,6.5589]
[1767639691173,6.5555,137.31,137.23,6.87893021]
[1767639691658,11.40956259,137.33,137.24,6.5587]
[1767639691860,101.9181,137.39,137.25,0.32003021]
[1767639692058,4.85466259,137.37,137.25,0.32003021]
[1767639692267,4.85466259,137.37,137.27,0.32003021]
[1767639693166,6.5522,137.38,137.3,6.5558]
[1767639693372,92.6122,137.38,137.3,6.87583021]
[1767639695267,92.6122,137.38,137.31,6.5554]
[1767639696474,1.81133114,137.37,137.31,6.5554]
[1767639697273,8.36413114,137.37,137.29,6.556]
[1767639697474,8.36413114,137.37,137.28,0.32003021]
[1767639697775,8.36413114,137.37,137.28,6.87653021]
[1767639697978,1.81133114,137.35,137.28,0.32003021]
[1767639698379,1.81133114,137.35,137.29,6.5562]
[1767639698574,1.81133114,137.34,137.26,6.67401144]
[1767639698774,1.81133114,137.34,137.26,6.99404165]
[1767639699477,8.36543114,137.34,137.26,6.99404165]
[1767639700582,6.5541,137.34,137.26,13.55174165]
[1767639700980,6.5535,137.36,137.26,6.99404165]
[1767639701183,4.85476882,137.37,137.27,13.23131144]
[1767639701888,6.5535,137.35,137.28,6.5568]
[1767639702181,101.9193,137.39,137.28,6.99566615]
[1767639702485,86.06,137.36,137.28,6.99566615]
[1767639702686,4.85476882,137.39,137.29,0.32003021]
[1767639702887,86.06,137.38,137.29,6.99566615]
[1767639703187,6.5526,137.37,137.3,6.5558]
[1767639703586,6.5526,137.37,137.29,6.99566615]
[1767639703887,6.5531,137.36,137.29,6.99566615]
[1767639704387,6.5531,137.36,137.3,6.67563594]
[1767639705281,6.5536,137.35,137.29,6.67563594]
[1767639706387,6.5536,137.35,137.28,6.99566615]
[1767639706590,101.9404,137.36,137.27,6.67563594]
[1767639706991,101.9297,137.37,137.27,6.67563594]
[1767639707191,6.554,137.34,137.27,6.67563594]
[1767639707694,4.85476882,137.39,137.28,0.32003021]
[1767639707896,86.06,137.38,137.29,6.99566615]
[1767639708496,6.5526,137.37,137.29,6.99566615]
[1767639708804,6.5526,137.37,137.3,0.32003021]
[1767639709805,6.5526,137.37,137.3,6.87583021]
[1767639710402,6.5519,137.39,137.3,0.32003021]
[1767639710603,92.6119,137.39,137.31,7.0055433]
[1767639710800,86.06,137.41,137.33,6.68551309]
[1767639711206,6.5517,137.39,137.33,6.68551309]
[1767639712011,92.6111,137.41,137.33,13.23961309]
[1767639712510,86.06,137.41,137.33,13.23961309]
[1767639712898,6.5505,137.42,137.34,6.68551309]
[1767639713103,6.5505,137.42,137.35,6.68551309]
[1767639713394,6.5505,137.42,137.34,0.32003021]
[1767639713395,6.5505,137.42,137.34,7.0055433]
[1767639713801,6.5505,137.42,137.35,6.68551309]
[1767639714105,13.0938,137.5,137.37,6.5525]
[1767639714411,86.06,137.47,137.38,0.32289531]
[1767639715700,6.5483,137.46,137.38,6.87489531]
[1767639716608,6.5483,137.46,137.38,0.32289531]
[1767639716904,6.5491,137.45,137.36,6.68551309]
[1767639717112,86.04,137.47,137.36,0.32289531]
[1767639717301,187.8997,137.47,137.36,0.32289531]
[1767639717697,86.04,137.47,137.37,0.32289531]
[1767639718809,6.5486,137.46,137.38,6.87489531]
[1767639719306,86.04,137.47,137.39,6.87439531]
[1767639719910,92.5876,137.48,137.39,0.32289531]
[1767639720513,94.39622113,137.48,137.39,0.32289531]
[1767639720712,92.5876,137.48,137.4,6.551]
[1767639720912,94.39622113,137.48,137.4,6.86532393]
[1767639721210,86.04,137.48,137.41,6.86492393]
[1767639721613,1.80862113,137.49,137.41,0.31432393]
[1767639721807,92.5667,137.5,137.41,0.31432393]
[1767639722012,86.02,137.5,137.43,6.86392393]
[1767639722215,87.82862113,137.53,137.44,2.12294506]
[1767639722708,86.02,137.53,137.44,0.31432393]
[1767639723109,92.565,137.53,137.45,6.5486]
[1767639723308,92.565,137.53,137.44,0.31432393]
[1767639723704,86.02,137.54,137.44,0.31432393]
[1767639724717,86.02,137.54,137.42,187.8895]
[1767639724718,92.5646,137.54,137.45,6.86262393]
[1767639724914,92.5646,137.54,137.45,0.31432393]
[1767639725411,6.5439,137.56,137.46,0.31432393]
[1767639725615,92.5439,137.56,137.46,0.31432393]
[1767639726019,86.0,137.56,137.47,0.31432393]
[1767639726207,187.7918,137.56,137.44,0.31432393]
[1767639726814,6.545,137.53,137.45,6.5487]
[1767639727512,6.545,137.53,137.45,6.86302393]
[1767639727914,6.545,137.53,137.46,6.5482]
[1767639729220,6.5455,137.52,137.45,0.31432393]
[1767639729414,101.8186,137.52,137.42,0.31432393]
[1767639729609,85.98,137.51,137.42,0.31432393]
[1767639730117,6.5469,137.49,137.39,0.31432393]
[1767639730819,6.5469,137.49,137.4,6.86502393]
[1767639731007,6.5469,137.49,137.4,0.31432393]
[1767639731211,101.8118,137.53,137.4,0.31432393]
[1767639731411,85.98,137.53,137.43,0.31432393]
[1767639732322,6.5459,137.52,137.43,6.86402393]
[1767639732821,85.98,137.53,137.43,6.86402393]
[1767639733822,85.98,137.52,137.44,6.86342393]
[1767639734124,6.5454,137.53,137.44,6.86342393]
[1767639734314,85.98,137.52,137.44,6.86342393]
[1767639734514,6.5454,137.53,137.44,6.86342393]
[1767639734715,92.5255,137.52,137.44,6.86342393]
[1767639734917,85.98,137.52,137.42,6.5497]
[1767639735323,90.82076772,137.52,137.42,6.5497]
[1767639736516,6.5469,137.49,137.42,6.5497]
[1767639737624,101.8336,137.5,137.38,0.31432393]
[1767639738426,6.548,137.47,137.39,6.5512]
[1767639738613,92.528,137.47,137.39,6.5512]
[1767639739114,85.98,137.47,137.38,0.31432393]
[1767639740128,6.5488,137.45,137.38,0.31432393]
[1767639740324,85.98,137.47,137.35,0.31432393]
[1767639740726,6.5487,137.46,137.37,0.31432393]
[1767639740927,92.5287,137.46,137.37,0.31432393]
[1767639741632,106.64486772,137.54,137.4,0.31432393]
[1767639741833,101.8119,137.53,137.41,0.31432393]
[1767639742021,187.7919,137.53,137.41,0.31432393]
[1767639742221,85.98,137.53,137.43,6.5496]
[1767639742927,85.98,137.52,137.43,0.31432393]
[1767639743825,92.5255,137.52,137.45,6.5486]
[1767639746931,6.5455,137.52,137.45,6.5486]
[1767639747234,92.5255,137.52,137.45,6.5486]
[1767639747625,92.5255,137.52,137.43,6.86362393]
[1767639748027,92.5255,137.52,137.43,0.31432393]
[1767639748028,85.98,137.52,137.43,0.31432393]
[1767639748234,85.98,137.51,137.43,0.31432393]
[1767639749339,85.98,137.51,137.4,0.31432393]
[1767639749643,101.8334,137.5,137.4,0.31432393]
[1767639750529,6.5479,137.47,137.4,6.86512393]
[1767639750733,85.98,137.46,137.37,0.31432393]
[1767639751434,6.5488,137.45,137.38,6.5517]
[1767639751627,85.98,137.46,137.37,0.31432393]
[1767639752239,6.5493,137.44,137.37,0.31432393]
[1767639752736,6.5499,137.43,137.36,6.5527]
[1767639752943,6.5499,137.43,137.35,6.5534]
[1767639753834,6.5491,137.45,137.34,0.3161714]
[1767639754135,85.98,137.44,137.35,0.3161714]
[1767639754539,85.98,137.44,137.36,0.3161714]
[1767639755531,85.98,137.44,137.37,6.5525]
[1767639755731,92.5293,137.44,137.37,6.5525]
[1767639758041,92.5293,137.44,137.36,0.3161714]
[1767639758235,85.98,137.44,137.36,7.00168449]
[1767639758438,6.5498,137.43,137.36,7.00168449]
[1767639759544,6.5498,137.43,137.36,6.68551309]
[1767639759839,6.5498,137.43,137.35,13.23871309]
[1767639760341,6.5498,137.43,137.35,13.55488449]
[1767639761744,6.5502,137.42,137.35,13.23871309]
[1767639761945,6.5502,137.42,137.35,6.68551309]
[1767639762247,101.8877,137.43,137.32,7.00168449]
[1767639762438,101.9008,137.41,137.31,6.68551309]
[1767639763445,6.5522,137.38,137.3,13.24131309]
[1767639763743,99.0787,137.44,137.29,0.3161714]
[1767639763744,101.8586,137.47,137.32,0.3161714]
[1767639764037,86.0,137.44,137.33,0.3161714]
[1767639764637,6.5507,137.41,137.33,6.8704714]
[1767639765142,86.0,137.44,137.34,0.3161714]
[1767639766648,6.5493,137.44,137.36,6.5529]
[1767639766847,92.5493,137.44,137.36,6.8690714]
[1767639767237,86.0,137.44,137.37,0.3161714]
[1767639767437,86.0,137.43,137.34,0.3161714]
[1767639767934,86.0,137.45,137.37,0.3161714]
[1767639768748,101.8529,137.48,137.35,6.68551309]
[1767639769048,6.5489,137.45,137.37,6.5525]
[1767639769441,6.5489,137.45,137.35,0.3161714]
[1767639769652,6.5495,137.44,137.36,6.553]
[1767639771556,6.5498,137.43,137.35,0.3161714]
[1767639772349,6.5498,137.43,137.35,6.8695714]
[1767639773045,6.5491,137.45,137.35,6.8695714]
[1767639773249,86.0,137.44,137.37,0.3161714]
[1767639774649,86.0,137.44,137.37,6.8685714]
[1767639775552,92.5495,137.44,137.37,0.3161714]
[1767639776149,92.5495,137.44,137.35,6.68551309]
[1767639776343,92.5495,137.44,137.36,6.68551309]
[1767639777757,86.0,137.44,137.36,6.68551309]
[1767639778055,86.0,137.44,137.34,7.02807251]
[1767639778956,6.5507,137.41,137.34,6.68551309]
[1767639780466,6.5501,137.43,137.34,13.58197251]
[1767639780756,86.0,137.44,137.34,13.58197251]
[1767639781055,101.8584,137.47,137.36,0.3310396]
[1767639781255,86.02,137.46,137.36,0.3310396]
[1767639781560,86.02,137.46,137.36,7.01655269]
[1767639781757,6.5484,137.46,137.37,0.3310396]
[1767639781949,6.5484,137.46,137.38,0.3310396]
[1767639782151,86.02,137.46,137.38,0.3310396]
[1767639783462,92.5684,137.46,137.38,6.8828396]
[1767639786366,86.02,137.46,137.37,6.68551309]
[1767639786663,86.02,137.46,137.36,13.23821309]
[1767639786853,6.5493,137.44,137.36,13.23821309]
[1767639787057,101.8743,137.45,137.35,7.01655269]
[1767639787863,187.887,137.46,137.35,7.01655269]
[1767639788462,86.0,137.45,137.36,7.01655269]
[1767639788763,101.8483,137.48,137.37,0.3310396]
[1767639788964,86.0,137.45,137.37,7.01655269]
[1767639789660,92.5488,137.45,137.37,13.56895269]
[1767639790058,101.8281,137.51,137.38,0.3310396]
[1767639790264,6.5475,137.48,137.4,0.3310396]
[1767639790462,6.5475,137.48,137.41,7.01655269]
[1767639790762,86.0,137.49,137.41,13.56715269]
[1767639790959,6.5468,137.5,137.42,0.3310396]
[1767639791163,92.5468,137.5,137.42,0.3310396]
[1767639791367,86.0,137.5,137.42,0.3310396]
[1767639792456,86.0,137.5,137.42,7.01655269]
[1767639792765,92.5465,137.5,137.42,13.56665269]
[1767639793355,92.5465,137.5,137.42,6.8811396]
[1767639793761,92.5465,137.5,137.42,13.56665269]
[1767639797073,86.0,137.5,137.42,7.01655269]
[1767639797278,86.0,137.5,137.4,13.23621309]
[1767639797569,187.8366,137.5,137.39,7.01655269]
[1767639797768,6.5479,137.47,137.39,13.56805269]
[1767639799366,187.8366,137.5,137.39,13.56805269]
[1767639799562,101.8562,137.47,137.38,6.68551309]
[1767639799763,101.8562,137.47,137.37,13.23771309]
[1767639800574,6.5493,137.44,137.37,13.23771309]
[1767639801065,101.8487,137.48,137.38,13.23741309]
[1767639802072,6.5487,137.46,137.39,0.3310396]
[1767639802265,86.0,137.47,137.4,7.01655269]
[1767639803673,92.5478,137.47,137.4,7.01655269]
[1767639804769,6.5483,137.46,137.4,0.3310396]
[1767639805162,6.5483,137.46,137.4,7.01655269]
[1767639805366,6.5483,137.46,137.4,6.68551309]
[1767639805668,6.5489,137.45,137.38,6.68551309]
[1767639807169,86.0,137.47,137.4,7.01655269]
[1767639808174,92.5479,137.47,137.4,7.01655269]
[1767639808474,86.0,137.47,137.4,6.68551309]
[1767639808768,86.0,137.47,137.39,13.23671309]
[1767639809263,86.0,137.47,137.4,6.5511]
[1767639809765,6.5483,137.46,137.39,6.68551309]
[1767639810771,6.5483,137.46,137.39,13.23711309]
[1767639811469,86.0,137.47,137.4,6.551]
[1767639812178,86.0,137.47,137.39,6.68551309]
[1767639812566,1.80953195,137.44,137.39,6.68551309]
[1767639813468,1.80953195,137.46,137.39,13.23691309]
[1767639814769,1.80953195,137.46,137.4,6.5511]
[1767639815480,1.80953195,137.46,137.39,13.23711309]
[1767639815976,1.80953195,137.44,137.39,6.68551309]
[1767639816175,1.80953195,137.44,137.38,6.68551309]
[1767639817669,8.35883195,137.44,137.38,6.68551309]
[1767639817981,1.80953195,137.44,137.38,6.68551309]
[1767639818677,1.80953195,137.44,137.38,13.56163935]
[1767639818987,1.80953195,137.46,137.4,7.00953935]
[1767639819181,86.0,137.47,137.41,6.68551309]
[1767639820583,92.5483,137.47,137.41,6.68551309]
[1767639821376,86.0,137.47,137.41,7.00953935]
[1767639821687,86.0,137.47,137.41,13.56013935]
[1767639821876,8.35663195,137.49,137.42,7.00953935]
[1767639822182,6.5471,137.49,137.42,7.00953935]
[1767639822487,8.35663195,137.49,137.42,7.00953935]
[1767639822782,8.35663195,137.49,137.42,6.68551309]
[1767639825185,6.5474,137.48,137.42,6.68551309]
[1767639825381,1.80953195,137.47,137.42,6.68551309]
[1767639825582,1.80953195,137.47,137.41,6.68551309]
[1767639826788,1.80953195,137.47,137.39,8.89868192]
[1767639826789,1.80953195,137.45,137.4,6.68551309]
[1767639827082,1.80953195,137.45,137.39,6.68551309]
[1767639827887,101.844,137.49,137.39,6.68551309]
[1767639828088,1.80953195,137.46,137.39,6.68551309]
[1767639829588,8.35803195,137.46,137.39,6.68551309]
[1767639829984,101.8365,137.5,137.39,13.56093935]
[1767639830191,1.80953195,137.47,137.4,7.00953935]
[1767639830994,1.80953195,137.51,137.44,0.32402626]
[1767639831484,8.35543195,137.51,137.44,6.87322626]
[1767639831791,8.35543195,137.51,137.44,13.55873935]
[1767639831991,8.35543195,137.51,137.45,6.68551309]
[1767639832192,8.35543195,137.51,137.44,13.55873935]
[1767639832893,8.35543195,137.51,137.45,6.68551309]
[1767639835094,8.35543195,137.51,137.45,7.00603374]
[1767639835296,1.80953195,137.51,137.45,7.00603374]
[1767639835490,1.80953195,137.51,137.45,0.32052065]
[1767639835793,1.80953195,137.51,137.45,7.00603374]
[1767639835995,85.98,137.52,137.45,7.00603374]
[1767639836497,92.5256,137.52,137.45,7.00603374]
[1767639837391,6.5459,137.51,137.45,7.00603374]
[1767639837603,1.80953195,137.51,137.45,7.00603374]
[1767639838296,92.5259,137.52,137.45,7.00603374]
[1767639838495,94.33543195,137.52,137.45,7.00603374]
[1767639839305,94.33543195,137.52,137.45,0.32052065]
[1767639840095,92.5259,137.52,137.45,6.86922065]
[1767639840298,94.33543195,137.52,137.45,13.55473374]
[1767639840694,1.80953195,137.53,137.46,0.32052065]
[1767639840889,94.33433195,137.54,137.47,0.31794814]
[1767639841094,85.98,137.54,137.48,0.31794814]
[1767639841492,85.98,137.54,137.49,6.5467]
[1767639841798,85.98,137.54,137.48,7.00346123]
[1767639842396,92.5245,137.54,137.47,13.23311309]
[1767639842600,94.33403195,137.54,137.47,6.68551309]
[1767639843191,94.33403195,137.54,137.47,7.00346123]
[1767639843398,94.33403195,137.54,137.48,0.31794814]
[1767639843706,94.33403195,137.54,137.48,6.86524814]
[1767639843707,87.78953195,137.54,137.48,6.86524814]
[1767639843999,85.98,137.54,137.48,6.86524814]
[1767639844401,85.98,137.54,137.48,0.31794814]
[1767639844797,92.5245,137.54,137.48,0.31794814]
[1767639847103,6.5451,137.53,137.46,7.00346123]
[1767639847300,6.5451,137.53,137.47,0.31794814]
[1767639848202,85.98,137.54,137.47,0.31794814]
[1767639848203,92.5248,137.54,137.47,6.86544814]
[1767639848412,1.80953195,137.53,137.45,6.68551309]
[1767639848701,1.80953195,137.53,137.45,0.31794814]
[1767639849703,6.5456,137.52,137.45,6.86664814]
[1767639851105,1.80953195,137.51,137.45,6.86664814]
[1767639851603,6.5456,137.52,137.46,0.31794814]
[1767639851806,8.35513195,137.52,137.46,0.31794814]
[1767639854205,6.5456,137.52,137.46,0.31794814]
[1767639858206,1.80953195,137.51,137.44,6.68551309]
[1767639858511,1.80953195,137.51,137.43,7.00346123]
[1767639858898,1.80953195,137.49,137.43,6.68551309]
[1767639859094,8.35643195,137.49,137.42,6.68551309]
[1767639859300,8.35643195,137.49,137.42,7.00346123]
[1767639859808,1.80953195,137.47,137.41,6.68551309]
[1767639860002,1.80953195,137.47,137.4,7.00346123]
[1767639860305,1.80953195,137.47,137.4,0.31794814]
[1767639860703,6.5474,137.48,137.41,0.31794814]
[1767639861608,8.35743195,137.47,137.41,0.31794814]
[1767639862307,6.5484,137.46,137.4,6.68551309]
[1767639862504,1.80953195,137.45,137.39,6.68551309]
[1767639862805,1.80953195,137.45,137.39,7.00346123]
[1767639863907,187.8072,137.49,137.39,7.00346123]
[1767639864106,1.80953195,137.45,137.39,0.31794814]
[1767639865207,1.80953195,137.45,137.38,13.23731309]
[1767639865208,1.80953195,137.43,137.37,6.68551309]
[1767639865412,1.80953195,137.43,137.36,0.31794814]
[1767639865614,1.80953195,137.41,137.36,0.31794814]
[1767639868514,6.5498,137.43,137.36,0.31794814]
[1767639869611,88.78801801,137.44,137.36,0.31794814]
[1767639870610,6.5507,137.41,137.36,0.31794814]
[1767639872316,2.82801801,137.4,137.31,7.00315198]
[1767639872514,2.82801801,137.4,137.31,0.31763889]
[1767639873112,85.98,137.39,137.31,0.31763889]
[1767639873517,85.98,137.39,137.32,6.87253889]
[1767639874213,85.98,137.39,137.32,0.31763889]
[1767639874821,92.5317,137.39,137.32,0.31763889]
[1767639876125,6.5521,137.38,137.32,0.31763889]
[1767639876820,85.98,137.39,137.32,6.87233889]
[1767639878626,92.5317,137.39,137.32,6.87233889]
[1767639880124,85.98,137.39,137.34,0.31763889]
[1767639880423,101.7965,137.55,137.41,0.31763889]
[1767639880629,2.82801801,137.54,137.41,0.31763889]
[1767639881220,6.5457,137.52,137.42,6.86753889]
[1767639881529,2.82801801,137.5,137.39,0.31763889]
[1767639882623,9.37471801,137.5,137.4,6.86863889]
[1767639882818,2.82801801,137.5,137.4,6.86863889]
[1767639883927,88.82801801,137.5,137.4,6.86863889]
[1767639884531,6.5471,137.49,137.4,6.86863889]
[1767639885031,2.82801801,137.48,137.4,0.31763889]
[1767639885731,6.548,137.47,137.4,0.31763889]
[1767639886233,6.547,137.49,137.41,0.31763889]
[1767639887133,86.0,137.5,137.42,0.31763889]
[1767639887432,2.82801801,137.52,137.42,0.31763889]
[1767639887633,86.0,137.53,137.42,0.31763889]
[1767639888534,6.5456,137.52,137.43,6.5496]
[1767639889828,6.5456,137.52,137.43,6.86723889]
[1767639890733,6.5456,137.52,137.44,0.31763889]
[1767639890935,6.5456,137.52,137.44,6.86673889]
[1767639893832,6.546,137.51,137.44,0.31763889]
[1767639894943,6.5465,137.5,137.42,6.87201179]
[1767639899836,6.5465,137.5,137.43,6.87181179]
[1767639900741,6.5457,137.52,137.44,0.32211179]
[1767639901238,86.0,137.53,137.46,6.8901056]
[1767639901540,6.5448,137.54,137.46,0.3420056]
[1767639902133,85.96,137.57,137.48,0.3420056]
[1767639902134,6.5438,137.56,137.48,0.3420056]
[1767639903646,6.5438,137.56,137.49,6.5466]
[1767639904746,6.5443,137.55,137.48,0.3420056]
[1767639905647,6.5443,137.55,137.48,6.8893056]
[1767639905848,6.5436,137.56,137.48,0.3420056]
[1767639906536,6.5436,137.56,137.49,6.5466]
[1767639910347,85.96,137.57,137.48,0.3420056]
[1767639911551,6.5431,137.57,137.49,6.8884056]
[1767639912045,2.82801801,137.58,137.49,0.3420056]
[1767639912250,2.82801801,137.58,137.5,6.8883056]
[1767639912251,6.5431,137.57,137.5,6.8883056]
[1767639913645,6.5435,137.56,137.5,0.3420056]
[1767639915657,2.82801801,137.58,137.49,6.5466]
[1767639916560,6.5435,137.56,137.49,6.5466]
[1767639916856,6.5435,137.56,137.49,6.8886056]
[1767639918351,6.544,137.55,137.49,6.8886056]
[1767639918549,2.82801801,137.56,137.47,6.8895056]
[1767639919356,6.5445,137.54,137.48,6.5473]
[1767639920762,104.62031801,137.56,137.47,0.3420056]
[1767639921352,9.37291801,137.54,137.47,0.3420056]
[1767639922652,6.545,137.53,137.47,0.3420056]
[1767639924160,2.82801801,137.52,137.43,7.02751869]
[1767639924357,2.82801801,137.52,137.44,6.68551309]
[1767639924558,2.82801801,137.52,137.44,7.02751869]
[1767639925658,6.5461,137.51,137.44,6.8911056]
[1767639926460,2.82801801,137.52,137.44,13.57661869]
[1767639927660,9.37351801,137.52,137.44,13.57661869]
[1767639928052,2.82801801,137.52,137.44,13.57661869]
[1767639928351,2.82801801,137.52,137.45,6.5487]
[1767639928652,2.82801801,137.52,137.44,7.02751869]
[1767639928653,1.80676925,137.55,137.47,0.3420056]
[1767639928847,1.80676925,137.53,137.46,6.68551309]
[1767639929048,1.80676925,137.51,137.45,0.3420056]
[1767639930455,1.80676925,137.51,137.45,7.02751869]
[1767639931457,8.35186925,137.53,137.45,7.02751869]
[1767639931662,8.35186925,137.53,137.46,6.86657274]
[1767639931853,6.5451,137.53,137.46,6.86657274]
[1767639932160,8.35186925,137.53,137.46,6.86657274]
[1767639932960,1.80676925,137.51,137.45,6.68551309]
[1767639933464,1.80676925,137.51,137.45,7.00378583]
[1767639933763,1.80676925,137.52,137.45,13.55248583]
[1767639933965,6.5449,137.54,137.45,15.35925508]
[1767639933966,8.35166925,137.54,137.45,15.35925508]
[1767639934361,8.35066925,137.56,137.48,0.31827274]